bitfinex-derivatives/quotes_SOLF0:USTF0_20250202
["timestamp","ask_amount","ask_price","bid_price","bid_amount"]
[1738476979047,1.4817,213.35,213.23,4.6908]
[1738476979243,1.4817,213.35,213.19,14.63639699]
[1738476979648,1.4817,213.35,213.15,145.05600419]
[1738476979849,0.03340845,213.29,213.25,0.03041298]
[1738476983949,4.6899,213.28,213.25,0.03041298]
[1738476984548,4.69,213.27,213.25,0.03041298]
[1738476985048,0.03340845,213.29,213.25,0.03041298]
[1738476985250,4.6902,213.26,213.25,0.03041298]
[1738476985947,1.5462,213.28,213.25,0.03041298]
[1738476986149,6.2362,213.28,213.25,0.03041298]
[1738476986447,1.5462,213.28,213.25,0.03041298]
[1738476986651,16.18259699,213.28,213.13,1.419]
[1738476986950,1.432,213.27,213.13,1.419]
[1738476987151,4.6911,213.22,213.17,4.6922]
[1738476987345,4.6911,213.22,213.13,1.419]
[1738476987744,0.03177982,213.2,213.15,4.6926]
[1738476987952,4.6921,213.18,213.08,1.5279]
[1738476988756,4.6921,213.18,213.1,5.21312431]
[1738476989358,4.6921,213.18,213.1,0.51952431]
[1738476990450,0.03177982,213.2,213.05,44.60368512]
[1738476990655,14.63639699,213.24,213.06,1.4466]
[1738476990850,0.03522742,213.15,213.06,1.4466]
[1738476991051,0.03522742,213.15,213.06,6.1411]
[1738476991250,0.03522742,213.15,213.06,1.4466]
[1738476991657,0.03522742,213.15,213.09,4.6939]
[1738476992452,0.03522742,213.15,213.07,14.63639699]
[1738476993959,0.03522742,213.15,213.11,14.63639699]
[1738476994253,1.5483,213.26,213.11,14.63639699]
[1738476994459,1.5483,213.26,213.15,4.6925]
[1738476994460,4.6907,213.25,213.15,4.6925]
[1738476994959,4.6907,213.24,213.15,4.6925]
[1738476995157,1.5483,213.26,213.15,4.6925]
[1738476995459,0.03485573,213.22,213.17,0.03523681]
[1738476995660,4.692,213.18,213.17,0.03523681]
[1738476996361,14.63639699,213.21,213.06,1.4466]
[1738476996561,4.6925,213.16,213.08,4.6941]
[1738476996861,14.63639699,213.21,213.06,1.4466]
[1738476997455,0.03300949,213.16,213.06,1.4466]
[1738476997762,0.03300949,213.16,213.09,4.6939]
[1738476997960,0.03300949,213.16,213.06,1.4466]
[1738476998461,4.6927,213.15,213.08,4.6942]
[1738477003262,0.03300949,213.16,213.06,1.4466]
[1738477003563,4.6929,213.14,213.07,4.6943]
[1738477005465,0.03300949,213.16,213.06,1.4466]
[1738477005668,4.6931,213.13,213.06,6.1412]
[1738477005865,4.6931,213.13,213.06,1.4466]
[1738477006067,0.03446168,213.12,213.06,1.4466]
[1738477006566,0.03446168,213.12,213.06,6.1412]
[1738477006766,0.03446168,213.12,213.06,1.4466]
[1738477007066,4.72786168,213.12,213.06,1.4466]
[1738477007963,0.03446168,213.12,213.04,92.88]
[1738477008267,0.03446168,213.12,213.01,9.15638529]
[1738477008464,0.03446168,213.12,213.01,13.85198529]
[1738477008667,9.15638529,213.08,212.94,9.15638529]
[1738477008865,1.5583,213.07,212.94,9.15638529]
[1738477009060,1.5583,213.07,212.97,4.6965]
[1738477009265,0.03250769,213.03,212.97,4.6965]
[1738477010164,0.03250769,213.03,212.97,9.15638529]
[1738477011070,0.03250769,213.03,212.99,4.6961]
[1738477011271,0.03250769,213.03,212.97,9.15638529]
[1738477011473,0.03250769,213.03,212.94,9.15638529]
[1738477011771,9.15638529,213.12,212.97,9.15638529]
[1738477011972,0.03138023,213.01,212.98,1.4437]
[1738477012271,0.03190411,213.02,212.98,1.4437]
[1738477012468,9.15638529,213.12,213.0,9.15638529]
[1738477012669,9.15638529,213.12,213.02,4.6953]
[1738477013063,9.15638529,213.12,212.99,1.5524]
[1738477013369,4.694,213.09,212.99,1.5524]
[1738477013572,0.03280512,213.08,213.03,0.03068875]
[1738477014472,4.6949,213.05,213.03,0.03068875]
[1738477014771,0.03280512,213.08,213.03,0.03068875]
[1738477014972,9.15638529,213.06,213.03,0.03068875]
[1738477015472,13.85118529,213.06,213.03,0.03068875]
[1738477015972,4.6951,213.04,213.03,0.03068875]
[1738477016169,9.15638529,213.06,212.91,10.61108529]
[1738477017271,0.03388438,213.01,212.91,10.61108529]
[1738477017468,0.03388438,213.01,212.97,4.6966]
[1738477017673,0.03388438,213.01,212.92,1.475]
[1738477018871,0.03388438,213.01,212.98,4.6963]
[1738477020079,0.03388438,213.01,212.99,4.6961]
[1738477020475,0.03388438,213.01,212.92,1.475]
[1738477020777,0.03388438,213.01,212.94,9.15638529]
[1738477020976,9.15638529,213.12,212.97,9.15638529]
[1738477021181,9.15638529,213.12,213.02,4.6953]
[1738477021376,9.15638529,213.12,212.97,9.15638529]
[1738477021578,9.15638529,213.09,212.97,9.15638529]
[1738477022082,0.03121431,213.05,213.01,0.03486023]
[1738477022782,0.03121431,213.05,213.01,4.73056023]
[1738477023490,0.03121431,213.05,213.01,0.03486023]
[1738477024882,0.03121431,213.05,213.04,4.6951]
[1738477025285,0.03121431,213.05,213.01,0.03486023]
[1738477025686,4.72601431,213.05,213.01,0.03486023]
[1738477026091,0.03121431,213.05,213.01,0.03486023]
[1738477026385,9.15638529,213.03,213.01,0.03486023]
[1738477027787,13.85168529,213.03,213.01,0.03486023]
[1738477030688,4.6955,213.02,213.01,0.03486023]
[1738477031392,4.696,213.0,212.94,4.6972]
[1738477032191,9.15638529,213.03,212.92,4.6975]
[1738477032382,4.73098906,212.99,212.92,4.6975]
[1738477033192,0.03468906,212.99,212.93,4.6975]
[1738477033491,0.03468906,212.99,212.88,9.15638529]
[1738477034384,0.03468906,212.99,212.91,4.6977]
[1738477034385,4.73088906,212.99,212.91,4.6977]
[1738477034589,0.03468906,212.99,212.91,4.6977]
[1738477035490,0.03468906,212.99,212.92,4.6977]
[1738477036195,4.73098906,212.99,212.92,4.6977]
[1738477036793,4.6964,212.98,212.9,4.6979]
[1738477038395,0.03468906,212.99,212.88,9.15638529]
[1738477038584,0.03468906,212.99,212.92,9.15638529]
[1738477038786,0.03391431,212.98,212.92,9.15638529]
[1738477039394,0.03391431,212.98,212.89,9.15638529]
[1738477040296,0.03391431,212.98,212.87,2.912]
[1738477040993,0.03391431,212.98,212.89,9.15638529]
[1738477041591,0.03391431,212.98,212.92,9.15638529]
[1738477044489,4.6944,213.07,212.97,4.6966]
[1738477044693,4.5554,213.14,212.87,14.6299745]
[1738477044694,9.15638529,213.12,212.98,10.64968529]
[1738477045398,9.15638529,213.15,213.01,9.15638529]
[1738477045596,9.15638529,213.18,213.04,9.15638529]
[1738477045795,0.03202932,213.1,213.06,0.03219045]
[1738477046099,0.03202932,213.1,213.07,4.6944]
[1738477046300,0.03202932,213.1,213.06,0.03219045]
[1738477047002,0.03202932,213.1,213.06,4.72669045]
[1738477047401,0.03202932,213.1,213.06,0.03219045]
[1738477047803,0.03202932,213.1,213.08,4.6942]
[1738477048502,9.15638529,213.18,213.07,1.515]
[1738477048699,9.15638529,213.18,213.1,4.6937]
[1738477049599,9.15638529,213.21,213.07,10.67138529]
[1738477049800,0.03180665,213.16,213.12,0.03376189]
[1738477050510,0.03180665,213.16,213.14,4.6928]
[1738477050807,9.15638529,213.27,213.13,9.15638529]
[1738477051708,9.15638529,213.27,213.19,4.6917]
[1738477051912,0.03127516,213.22,213.18,0.03589499]
[1738477052212,9.15638529,213.21,213.18,0.03589499]
[1738477053008,0.03127516,213.22,213.18,0.03589499]
[1738477053211,0.03127516,213.22,213.2,4.6915]
[1738477053407,0.03127516,213.22,213.18,0.03589499]
[1738477053915,0.03127516,213.22,213.21,4.6913]
[1738477055419,10.67748529,213.3,213.18,0.03589499]
[1738477055617,9.15638529,213.33,213.19,9.15638529]
[1738477056321,9.15638529,213.29,213.17,1.4936]
[1738477056511,9.15638529,213.26,213.17,1.4936]
[1738477056713,0.03038584,213.25,213.21,0.03539913]
[1738477063233,4.72088584,213.25,213.21,0.03539913]
[1738477063726,4.6909,213.23,213.21,0.03539913]
[1738477064821,0.03038584,213.25,213.21,0.03539913]
[1738477065622,4.6911,213.22,213.21,0.03539913]
[1738477067328,9.15638529,213.23,213.21,0.03539913]
[1738477068822,4.6911,213.22,213.21,0.03539913]
[1738477069031,9.15638529,213.23,213.21,0.03539913]
[1738477070331,4.6907,213.24,213.21,0.03539913]
[1738477070626,0.03038584,213.25,213.21,0.03539913]
[1738477070830,18.31277058,213.22,212.99,9.15638529]
[1738477071135,9.15638529,213.11,212.99,9.15638529]
[1738477071432,9.15638529,213.14,213.0,1.4816]
[1738477072025,0.03081775,213.09,213.05,0.03113702]
[1738477072934,4.6945,213.07,213.05,0.03113702]
[1738477074034,4.72491775,213.09,213.05,0.03113702]
[1738477074327,0.03081775,213.09,213.05,0.03113702]
[1738477075126,4.6944,213.07,213.05,0.03113702]
[1738477075735,9.15638529,213.08,213.05,0.03113702]
[1738477077633,0.03081775,213.09,213.05,0.03113702]
[1738477080238,9.15638529,213.08,213.05,0.03113702]
[1738477080533,9.15638529,213.08,212.98,1.4919]
[1738477080736,9.15638529,213.03,212.93,1.5088]
[1738477081130,9.15638529,213.03,212.94,4.6972]
[1738477081337,9.15638529,213.03,212.91,1.4257]
[1738477081728,0.03067848,212.99,212.95,0.03243356]
[1738477083340,4.6964,212.98,212.95,0.03243356]
[1738477083540,0.03067848,212.99,212.95,0.03243356]
[1738477085437,4.72687848,212.99,212.95,0.03243356]
[1738477087038,9.15638529,212.97,212.95,0.03243356]
[1738477087344,4.6972,212.95,212.86,1.4725]
[1738477087639,9.15638529,212.94,212.86,1.4725]
[1738477088142,1.5149,213.0,212.85,4.6992]
[1738477088143,9.15638529,212.91,212.85,4.6992]
[1738477088343,9.15638529,212.91,212.78,9.15638529]
[1738477088543,9.15638529,212.91,212.88,0.03360826]
[1738477088744,9.15638529,212.91,212.78,9.15638529]
[1738477088948,9.15638529,212.91,212.87,0.03159277]
[1738477089248,9.15638529,212.88,212.87,0.03159277]
[1738477093450,9.18930494,212.91,212.87,0.03159277]
[1738477093646,0.03291965,212.91,212.87,0.03159277]
[1738477094848,0.03291965,212.91,212.89,4.6983]
[1738477095752,0.03291965,212.91,212.87,0.03159277]
[1738477096655,0.03291965,212.91,212.9,4.6977]
[1738477097452,9.15638529,212.98,212.88,1.4468]
[1738477097653,9.15638529,212.98,212.92,4.6972]
[1738477097854,1.4186,212.99,212.88,1.4468]
[1738477098051,9.15638529,213.01,212.94,4.6967]
[1738477098753,0.0342222,213.0,212.95,0.03353172]
[1738477099058,9.15638529,212.98,212.95,0.03353172]
[1738477100252,0.0342222,213.0,212.95,0.03353172]
[1738477102553,4.7297222,213.0,212.95,0.03353172]
[1738477102755,0.0342222,213.0,212.95,0.03353172]
[1738477103160,0.0342222,213.0,212.96,4.6963]
[1738477103356,0.0342222,213.0,212.95,0.03353172]
[1738477103755,0.0342222,213.0,212.99,4.6957]
[1738477107562,0.0342222,213.0,212.97,4.696]
[1738477109056,0.0342222,213.0,212.95,0.03353172]
[1738477111766,4.6959,212.98,212.95,0.03353172]
[1738477112065,0.0342222,213.0,212.95,0.03353172]
[1738477112365,4.7299222,213.0,212.95,0.03353172]
[1738477113066,4.6958,212.99,212.95,0.03353172]
[1738477113262,0.0342222,213.0,212.95,0.03353172]
[1738477114856,4.6957,212.99,212.95,0.03353172]
[1738477116264,0.0342222,213.0,212.95,0.03353172]
[1738477117366,0.0342222,213.0,212.96,4.6963]
[1738477117566,0.0342222,213.0,212.95,0.03353172]
[1738477118268,4.6957,212.99,212.95,0.03353172]
[1738477119269,9.15638529,212.98,212.95,0.03353172]
[1738477119459,9.15638529,212.98,212.84,9.15638529]
[1738477119866,4.6969,212.94,212.84,9.15638529]
[1738477120368,9.15638529,212.98,212.87,4.6983]
[1738477120666,0.03280758,212.95,212.9,0.02986954]
[1738477123472,0.03280758,212.95,212.9,4.72756954]
[1738477124774,0.03280758,212.95,212.91,4.6973]
[1738477124974,0.03280758,212.95,212.9,0.02986954]
[1738477125374,0.03280758,212.95,212.94,4.6968]
[1738477127178,0.03280758,212.95,212.92,4.697]
[1738477127379,0.03280758,212.95,212.91,1.463]
[1738477127680,0.03280758,212.95,212.92,4.6972]
[1738477133680,10.70098529,213.04,212.9,9.18625483]
[1738477133888,9.15638529,213.07,212.91,1.5194]
[1738477134078,4.6944,213.05,212.97,4.6959]
[1738477134883,0.03101401,213.03,212.99,0.03118406]
[1738477135986,4.6955,213.0,212.99,0.03118406]
[1738477137385,9.15638529,213.01,212.91,6.2167]
[1738477137587,4.6962,212.97,212.91,1.5194]
[1738477138687,4.6962,212.97,212.92,0.03412002]
[1738477138688,0.03357103,212.96,212.92,0.03412002]
[1738477139391,4.72997103,212.96,212.92,0.03412002]
[1738477140291,0.03357103,212.96,212.92,0.03412002]
[1738477140491,4.697,212.93,212.92,0.03412002]
[1738477143392,15.41338529,212.95,212.92,0.03412002]
[1738477144595,9.15638529,212.95,212.92,0.03412002]
[1738477145097,0.03357103,212.96,212.92,0.03412002]
[1738477145792,4.697,212.93,212.92,0.03412002]
[1738477147897,4.6982,212.88,212.82,1.5046]
[1738477148292,9.15638529,212.89,212.82,1.5046]
[1738477148498,9.15638529,212.89,212.8,2.00282064]
[1738477148997,4.6986,212.86,212.8,2.00282064]
[1738477149200,9.15638529,212.83,212.77,127.2796072]
[1738477149595,0.03591453,212.82,212.74,1.4736]
[1738477151396,0.03591453,212.82,212.76,4.7007]
[1738477151698,0.03591453,212.82,212.74,1.4736]
[1738477151901,0.03591453,212.82,212.75,4.701]
[1738477152800,0.03591453,212.82,212.74,1.4736]
[1738477153597,0.03591453,212.82,212.75,4.701]
[1738477153894,0.03591453,212.82,212.74,1.4736]
[1738477154200,0.03591453,212.82,212.77,4.7005]
[1738477156301,0.03591453,212.82,212.74,1.4736]
[1738477156504,4.73541453,212.82,212.74,1.4736]
[1738477156899,0.03591453,212.82,212.76,4.7008]
[1738477157100,0.03591453,212.82,212.74,1.4736]
[1738477159103,0.03591453,212.82,212.75,4.7009]
[1738477160205,0.03591453,212.82,212.76,4.7007]
[1738477163802,9.15638529,212.89,212.76,9.15638529]
[1738477164708,13.85448529,212.89,212.8,4.6997]
[1738477164902,9.15638529,212.89,212.82,0.03332466]
[1738477165107,0.03120962,212.87,212.82,0.03332466]
[1738477166213,0.03120962,212.87,212.86,4.6986]
[1738477166412,6.1596,212.94,212.82,0.03332466]
[1738477166618,9.15638529,212.92,212.82,0.03332466]
[1738477167017,4.6975,212.91,212.82,0.03332466]
[1738477167616,0.030128,212.89,212.82,0.03332466]
[1738477168017,13.88461329,212.89,212.82,0.03332466]
[1738477168913,9.18651329,212.89,212.83,4.6992]
[1738477169117,0.030128,212.89,212.82,0.03332466]
[1738477170218,9.18651329,212.89,212.82,0.03332466]
[1738477172218,9.18651329,212.89,212.82,4.73252466]
[1738477172519,9.18651329,212.89,212.82,0.03332466]
[1738477173022,9.18651329,212.89,212.82,4.73272466]
[1738477173320,9.18651329,212.89,212.82,0.03332466]
[1738477173521,4.6991,212.84,212.82,0.03332466]
[1738477174123,4.6992,212.83,212.82,0.03332466]
[1738477174421,13.85558529,212.83,212.82,0.03332466]
[1738477175018,13.85558529,212.83,212.75,4.7009]
[1738477175214,9.15638529,212.83,212.7,9.15638529]
[1738477175420,9.15638529,212.83,212.76,4.7007]
[1738477175619,1.5238,212.85,212.7,9.15638529]
[1738477175924,1.5238,212.85,212.73,9.15638529]
[1738477176125,1.5238,212.85,212.79,4.7]
[1738477176329,0.03495783,212.81,212.79,4.7]
[1738477177623,0.03495783,212.81,212.78,4.7003]
[1738477178422,0.03495783,212.81,212.77,0.0305436]
[1738477182329,4.73465783,212.81,212.77,0.0305436]
[1738477182526,0.03495783,212.81,212.77,0.0305436]
[1738477183528,0.03495783,212.81,212.77,4.7310436]
[1738477184330,0.03495783,212.81,212.78,4.7003]
[1738477185232,0.03495783,212.81,212.8,4.6999]
[1738477188332,0.03495783,212.81,212.77,0.0305436]
[1738477188333,0.03495783,212.81,212.78,4.7001]
[1738477189537,0.03495783,212.81,212.77,0.0305436]
[1738477189730,0.03495783,212.81,212.79,4.7]
[1738477189934,0.03495783,212.81,212.78,5.87773099]
[1738477190236,5.87773099,212.86,212.81,4.6996]
[1738477190732,5.87773099,212.86,212.79,4.6999]
[1738477191334,0.03121781,212.85,212.8,0.03083549]
[1738477192438,5.87773099,212.84,212.8,0.03083549]
[1738477193937,0.03121781,212.85,212.8,5.90856648]
[1738477195042,0.03121781,212.85,212.82,4.6993]
[1738477197734,0.03121781,212.85,212.8,4.73053549]
[1738477198643,0.03121781,212.85,212.81,4.6995]
[1738477198835,0.03121781,212.85,212.8,0.03083549]
[1738477199842,0.03121781,212.85,212.82,4.6993]
[1738477200534,0.03121781,212.85,212.84,4.699]
[1738477201141,5.87773099,212.94,212.84,5.87773099]
[1738477201443,5.87773099,212.94,212.86,5.87773099]
[1738477201840,5.87773099,212.96,212.88,5.87773099]
[1738477202045,5.87773099,212.98,212.9,5.87773099]
[1738477202243,0.03555187,212.94,212.9,5.90780156]
[1738477202443,5.87773099,212.98,212.94,4.6968]
[1738477202842,5.87773099,212.96,212.9,0.03007057]
[1738477203047,5.87773099,212.93,212.9,0.03007057]
[1738477203247,5.87773099,212.93,212.86,5.87773099]
[1738477203644,5.87773099,212.91,212.87,0.03481041]
[1738477203844,9.17595299,212.95,212.85,1.5506]
[1738477204044,0.03042197,212.91,212.87,0.03127888]
[1738477205743,0.03042197,212.91,212.88,4.6981]
[1738477206047,0.03042197,212.91,212.87,0.03127888]
[1738477209346,0.03042197,212.91,212.9,4.6977]
[1738477210653,4.6956,213.0,212.87,9.20723187]
[1738477210852,4.6956,213.0,212.92,4.6972]
[1738477211248,9.17595299,213.01,212.87,9.17595299]
[1738477211452,9.17595299,213.04,212.9,9.17595299]
[1738477211849,0.03509838,212.99,212.95,0.0302937]
[1738477212049,9.17595299,212.98,212.95,0.0302937]
[1738477212449,4.6964,212.96,212.95,0.0302937]
[1738477213249,9.17595299,212.98,212.95,0.0302937]
[1738477213745,4.6964,212.96,212.95,0.0302937]
[1738477214454,4.6967,212.95,212.87,4.6982]
[1738477214651,9.17595299,212.95,212.82,9.17595299]
[1738477214852,9.17595299,212.92,212.8,2.9659]
[1738477215149,9.17595299,212.92,212.84,4.699]
[1738477215349,9.17595299,212.95,212.8,2.9659]
[1738477215550,9.17595299,212.95,212.82,9.17595299]
[1738477215751,9.17595299,212.95,212.85,0.03125626]
[1738477215752,0.03441793,212.9,212.85,0.03125626]
[1738477216056,0.03441793,212.9,212.85,9.20720925]
[1738477216350,9.17595299,213.01,212.94,4.6968]
[1738477216549,9.17595299,213.04,212.88,9.17595299]
[1738477216749,13.87055299,213.04,212.92,4.6971]
[1738477216952,9.17595299,213.04,212.88,9.17595299]
[1738477217449,0.03060313,212.98,212.94,0.03215125]
[1738477218257,0.03060313,212.98,212.95,4.6965]
[1738477218949,13.86935299,213.1,212.95,9.17595299]
[1738477219259,9.17595299,213.13,212.98,9.17595299]
[1738477219654,1.4838,213.12,212.98,9.17595299]
[1738477220055,0.03350783,213.07,213.03,0.03353774]
[1738477223557,0.03350783,213.07,213.05,4.6942]
[1738477225361,0.03350783,213.07,213.04,1.46]
[1738477225961,0.03350783,213.07,213.04,6.1546]
[1738477227061,0.03350783,213.07,213.04,1.46]
[1738477227953,9.17595299,213.19,213.09,4.6935]
[1738477228756,9.17595299,213.19,213.05,9.17595299]
[1738477228961,1.4949,213.2,213.08,9.17595299]
[1738477229263,0.03556098,213.14,213.11,9.17595299]
[1738477229561,9.17595299,213.25,213.12,1.4504]
[1738477230051,9.17595299,213.25,213.17,4.6917]
[1738477230252,4.6899,213.26,213.14,9.17595299]
[1738477230661,0.03505789,213.22,213.18,0.03598744]
[1738477231264,0.03505789,213.22,213.2,4.691]
[1738477231560,9.17595299,213.34,213.2,9.17595299]
[1738477231760,9.17595299,213.34,213.21,1.5071]
[1738477231962,13.86405299,213.34,213.24,4.6901]
[1738477232262,9.17595299,213.37,213.23,9.17595299]
[1738477232457,13.86345299,213.37,213.23,9.17595299]
[1738477232659,0.03431285,213.32,213.28,0.03020608]
[1738477235564,4.6887,213.31,213.28,0.03020608]
[1738477236161,0.03431285,213.32,213.28,0.03020608]
[1738477237367,4.6887,213.31,213.28,0.03020608]
[1738477238968,4.6889,213.3,213.28,0.03020608]
[1738477239368,0.03431285,213.32,213.28,0.03020608]
[1738477239571,4.6891,213.29,213.28,0.03020608]
[1738477240064,1.4919,213.31,213.28,0.03020608]
[1738477240763,0.03431285,213.32,213.28,4.71950608]
[1738477240969,0.03431285,213.32,213.28,0.03020608]
[1738477242772,0.03431285,213.32,213.29,9.17595299]
[1738477243175,4.6873,213.38,213.29,9.17595299]
[1738477243973,4.6873,213.38,213.3,4.6888]
[1738477244471,0.03213217,213.36,213.3,4.6888]
[1738477244668,0.03213217,213.36,213.29,9.17595299]
[1738477245471,4.71973217,213.36,213.29,9.17595299]
[1738477245672,0.03213217,213.36,213.29,9.17595299]
[1738477246073,0.03213217,213.36,213.29,13.86495299]
[1738477246274,0.03213217,213.36,213.29,9.17595299]
[1738477247780,0.03213217,213.36,213.3,4.6888]
[1738477248174,0.03213217,213.36,213.29,9.17595299]
[1738477248474,0.03213217,213.36,213.3,9.17595299]
[1738477249481,0.03213217,213.36,213.31,1.4487]
[1738477249675,9.17595299,213.46,213.33,9.17595299]
[1738477249875,9.17595299,213.46,213.38,4.6871]
[1738477249876,4.6856,213.46,213.38,4.6871]
[1738477250179,9.17595299,213.49,213.36,9.17595299]
[1738477250381,6.2268,213.5,213.41,4.6864]
[1738477250578,1.5422,213.5,213.39,9.17595299]
[1738477250980,0.03255783,213.47,213.43,4.6859]
[1738477251581,0.03255783,213.47,213.42,9.2090487]
[1738477251774,0.03255783,213.47,213.44,4.6856]
[1738477252273,0.03255783,213.47,213.44,4.6858]
[1738477253477,0.03255783,213.47,213.42,13.8951487]
[1738477253674,0.03255783,213.47,213.42,0.03309571]
[1738477254077,0.00265603,213.47,213.42,0.03309571]
[1738477254981,0.00265603,213.47,213.45,4.6856]
[1738477255380,1.4962,213.56,213.49,4.6845]
[1738477255582,9.17595299,213.61,213.48,9.17595299]
[1738477255781,9.17595299,213.64,213.48,9.17595299]
[1738477256081,9.17595299,213.61,213.5,4.6843]
[1738477256287,9.17595299,213.61,213.45,9.17595299]
[1738477256476,4.71629853,213.58,213.53,0.03535081]
[1738477256675,0.03349853,213.58,213.53,0.03535081]
[1738477258584,4.71629853,213.58,213.53,0.03535081]
[1738477258883,0.03349853,213.58,213.53,0.03535081]
[1738477259076,4.71629853,213.58,213.53,0.03535081]
[1738477259276,0.03349853,213.58,213.53,0.03535081]
[1738477259679,4.6832,213.56,213.53,0.03535081]
[1738477260380,9.17595299,213.55,213.43,1.4316]
[1738477260786,4.6838,213.53,213.45,4.6854]
[1738477260985,9.17595299,213.52,213.4,1.4616]
[1738477261686,0.03216629,213.48,213.44,0.03453938]
[1738477262484,4.6856,213.45,213.36,1.5518]
[1738477262790,9.17595299,213.43,213.34,127.2796072]
[1738477262981,4.6858,213.44,213.36,4.6875]
[1738477263184,9.17595299,213.46,213.34,127.2796072]
[1738477263584,4.6864,213.42,213.34,131.9676072]
[1738477263781,4.72130559,213.42,213.38,0.03033071]
[1738477263980,4.72120559,213.42,213.38,0.03033071]
[1738477264183,0.03490559,213.42,213.38,0.03033071]
[1738477264585,4.6878,213.35,213.27,4.6895]
[1738477264786,9.21085858,213.42,213.26,9.17595299]
[1738477264985,9.17595299,213.42,213.29,9.17595299]
[1738477265185,9.17595299,213.45,213.32,9.17595299]
[1738477265780,0.03286979,213.41,213.36,0.03507202]
[1738477267287,4.71936979,213.41,213.36,0.03507202]
[1738477267490,0.03286979,213.41,213.36,0.03507202]
[1738477267990,0.03286979,213.41,213.38,4.687]
[1738477268689,0.03286979,213.41,213.39,4.6868]
[1738477269188,0.03286979,213.41,213.38,9.17595299]
[1738477269791,0.03286979,213.41,213.38,13.86305299]
[1738477270183,0.00268223,213.41,213.38,13.86305299]
[1738477270591,0.00268223,213.41,213.38,9.17595299]
[1738477272288,0.00268223,213.41,213.36,0.03507202]
[1738477273890,0.00268223,213.41,213.37,4.6873]
[1738477275383,0.00268223,213.41,213.36,4.72257202]
[1738477275602,0.00268223,213.41,213.36,0.03507202]
[1738477277586,0.00268223,213.41,213.37,4.6872]
[1738477277787,0.00268223,213.41,213.36,0.03507202]
[1738477278892,0.00268223,213.41,213.37,4.6873]
[1738477279397,0.00268223,213.41,213.36,0.03507202]
[1738477280097,4.685,213.48,213.41,4.6863]
[1738477280293,1.5151,213.49,213.38,9.17595299]
[1738477280795,4.6854,213.47,213.39,4.6867]
[1738477280990,1.5151,213.49,213.38,9.17595299]
[1738477281188,0.03289106,213.45,213.41,0.02987854]
[1738477284001,4.71849106,213.45,213.41,0.02987854]
[1738477284499,0.03289106,213.45,213.41,0.02987854]
[1738477284800,4.6859,213.44,213.41,0.02987854]
[1738477285302,4.6862,213.42,213.41,0.02987854]
[1738477288801,4.688,213.34,213.29,4.6891]
[1738477289006,0.03289106,213.45,213.26,10.70615299]
[1738477289007,9.17595299,213.39,213.26,10.70615299]
[1738477289298,9.17595299,213.42,213.29,9.17595299]
[1738477289492,1.4542,213.44,213.29,9.17595299]
[1738477290005,0.02990373,213.39,213.35,4.6878]
[1738477290306,0.02990373,213.39,213.34,0.03566295]
[1738477290803,0.02990373,213.39,213.35,9.17595299]
[1738477291000,4.6853,213.47,213.4,4.6866]
[1738477292103,0.0322957,213.46,213.4,4.6866]
[1738477292304,0.0322957,213.46,213.42,9.17595299]
[1738477293107,0.0322957,213.46,213.44,4.6858]
[1738477293303,4.6839,213.53,213.42,9.17595299]
[1738477293504,1.4436,213.55,213.45,9.17595299]
[1738477294210,1.4436,213.55,213.47,4.6851]
[1738477294511,0.03476996,213.52,213.48,0.03239273]
[1738477296212,0.03476996,213.52,213.48,9.20834572]
[1738477296608,1.4242,213.63,213.48,9.20834572]
[1738477296810,1.4242,213.63,213.51,9.17595299]
[1738477297413,4.6819,213.62,213.53,4.6838]
[1738477297922,0.03375284,213.6,213.55,0.03512147]
[1738477299019,4.71615284,213.6,213.55,0.03512147]
[1738477299220,0.03375284,213.6,213.55,0.03512147]
[1738477299724,4.6829,213.58,213.55,0.03512147]
[1738477299912,0.03375284,213.6,213.55,0.03512147]
[1738477300220,4.683,213.57,213.55,0.03512147]
[1738477300416,0.03375284,213.6,213.55,0.03512147]
[1738477300617,4.6827,213.59,213.55,0.03512147]
[1738477301322,0.03375284,213.6,213.55,0.03512147]
[1738477301512,4.71605284,213.6,213.55,0.03512147]
[1738477305418,0.03375284,213.6,213.55,0.03512147]
[1738477306822,0.03375284,213.6,213.56,4.6832]
[1738477309627,0.03375284,213.6,213.55,0.03512147]
[1738477310228,0.03375284,213.6,213.55,1.58572147]
[1738477310624,1.5175,213.69,213.55,1.58572147]
[1738477310819,1.5175,213.69,213.57,9.17595299]
[1738477311020,9.17595299,213.73,213.6,9.17595299]
[1738477311724,9.17595299,213.73,213.6,13.85815299]
[1738477311926,9.17595299,213.73,213.64,0.03170089]
[1738477312230,9.17595299,213.73,213.64,4.71310089]
[1738477312532,9.17595299,213.73,213.64,0.03170089]